[Event "Late-Titled-Tuesday-Blitz-January-23-2024"]
[Site "Chess.com"]
[Date "2024.01.23"]
[Round "10"]
[White "LevonAronian"]
[Black "GM_dmitrij"]
[Result "1-0"]
[WhiteElo "3116"]
[BlackElo "2995"]
[TimeControl "180+1"]
[EndTime "15:52:38 PST"]
[Termination "LevonAronian won on time"]

1. e4 {[%clk 0:02:58.1]} 1... e5 {[%clk 0:02:58.2]} 2. Bc4 {[%clk 0:02:58.7]}
2... Nf6 {[%clk 0:02:57.4]} 3. d3 {[%clk 0:02:59.4]} 3... c6 {[%clk 0:02:54.6]}
4. Bb3 {[%clk 0:02:58.5]} 4... a5 {[%clk 0:02:53.5]} 5. Nc3 {[%clk 0:02:39.8]}
5... Bb4 {[%clk 0:02:51.7]} 6. a3 {[%clk 0:02:37.9]} 6... Bxc3+ {[%clk 0:02:51]}
7. bxc3 {[%clk 0:02:38.5]} 7... a4 {[%clk 0:02:47.3]} 8. Ba2 {[%clk 0:02:37.9]}
8... d5 {[%clk 0:02:47.9]} 9. exd5 {[%clk 0:02:25.7]} 9... Nxd5 {[%clk
0:02:44.8]} 10. Ne2 {[%clk 0:02:13]} 10... O-O {[%clk 0:02:40.7]} 11. O-O {[%clk
0:02:12.5]} 11... Bg4 {[%clk 0:02:18.3]} 12. Bd2 {[%clk 0:02:03.1]} 12... Nd7
{[%clk 0:02:14.9]} 13. Qe1 {[%clk 0:01:48.8]} 13... Re8 {[%clk 0:01:56.2]} 14.
Ng3 {[%clk 0:01:48.7]} 14... Nc5 {[%clk 0:01:46.7]} 15. f3 {[%clk 0:01:33.1]}
15... Bd7 {[%clk 0:01:33.2]} 16. Qf2 {[%clk 0:01:26.7]} 16... Ne6 {[%clk
0:01:31]} 17. Rfe1 {[%clk 0:01:21.7]} 17... Qc7 {[%clk 0:01:16.8]} 18. Ne4
{[%clk 0:01:15.8]} 18... Kh8 {[%clk 0:00:50.7]} 19. Rab1 {[%clk 0:01:07.9]}
19... b5 {[%clk 0:00:44.3]} 20. c4 {[%clk 0:01:04.4]} 20... Ndf4 {[%clk
0:00:44.4]} 21. cxb5 {[%clk 0:00:51.3]} 21... cxb5 {[%clk 0:00:45.3]} 22. Bb4
{[%clk 0:00:51.8]} 22... Ra6 {[%clk 0:00:31.4]} 23. Kh1 {[%clk 0:00:28.7]} 23...
Bc8 {[%clk 0:00:30.1]} 24. g3 {[%clk 0:00:20]} 24... Ng6 {[%clk 0:00:29.6]} 25.
Nc3 {[%clk 0:00:14.9]} 25... Nd4 {[%clk 0:00:28.3]} 26. Qxd4 {[%clk 0:00:12.5]}
26... Bb7 {[%clk 0:00:21.8]} 27. Qf2 {[%clk 0:00:12.3]} 27... Rc6 {[%clk
0:00:20]} 28. Nxb5 {[%clk 0:00:10.1]} 28... Qd7 {[%clk 0:00:16.8]} 29. Kg1
{[%clk 0:00:08.4]} 29... Nf4 {[%clk 0:00:12]} 30. Qf1 {[%clk 0:00:04.1]} 30...
Rg6 {[%clk 0:00:11.3]} 31. Nd6 {[%clk 0:00:04]} 31... Rxd6 {[%clk 0:00:07.6]}
32. Bxd6 {[%clk 0:00:03.8]} 32... Qxd6 {[%clk 0:00:03.7]} 33. Rxb7 {[%clk
0:00:03.3]} 33... Qc6 {[%clk 0:00:02.2]} 34. Rxf7 {[%clk 0:00:02.2]} 34... Qxc2
{[%clk 0:00:01.7]} 35. gxf4 {[%clk 0:00:02.3]} 35... Qxa2 {[%clk 0:00:01.9]} 36.
Rf5 {[%clk 0:00:01.7]} 36... Qxa3 {[%clk 0:00:01.3]} 37. Rfxe5 {[%clk 0:00:02]}
37... Rf8 {[%clk 0:00:01.3]} 38. Re8 {[%clk 0:00:01.8]} 1-0

[Event "Late-Titled-Tuesday-Blitz-January-23-2024"]
[Site "Chess.com"]
[Date "2024.01.23"]
[Round "10"]
[White "OneTrickPony_82"]
[Black "Sanyura"]
[Result "1-0"]
[WhiteElo "2516"]
[BlackElo "2616"]
[TimeControl "180+1"]
[EndTime "15:52:39 PST"]
[Termination "OneTrickPony_82 won on time"]

1. d4 {[%clk 0:03:00.9]} 1... Nf6 {[%clk 0:02:14.7]} 2. c4 {[%clk 0:02:15.7]}
2... g6 {[%clk 0:02:14.3]} 3. Nc3 {[%clk 0:02:15.7]} 3... Bg7 {[%clk 0:02:14.3]}
4. e4 {[%clk 0:02:16.4]} 4... d6 {[%clk 0:02:14.2]} 5. Nf3 {[%clk 0:02:17.1]}
5... O-O {[%clk 0:02:14.2]} 6. Be2 {[%clk 0:02:17.7]} 6... e5 {[%clk 0:02:13.3]}
7. O-O {[%clk 0:02:18]} 7... Nc6 {[%clk 0:02:12.7]} 8. d5 {[%clk 0:02:17.8]}
8... Ne7 {[%clk 0:02:12]} 9. b4 {[%clk 0:02:18.5]} 9... Nh5 {[%clk 0:02:11.3]}
10. Re1 {[%clk 0:02:18.6]} 10... Nf4 {[%clk 0:02:10.3]} 11. Bf1 {[%clk
0:02:18.3]} 11... f5 {[%clk 0:02:10.2]} 12. a4 {[%clk 0:02:18.2]} 12... fxe4
{[%clk 0:02:07.6]} 13. Nxe4 {[%clk 0:02:11.3]} 13... Bg4 {[%clk 0:02:05.9]} 14.
Ra3 {[%clk 0:02:09.6]} 14... Qd7 {[%clk 0:01:07.1]} 15. h3 {[%clk 0:02:00.8]}
15... Bf5 {[%clk 0:00:53.9]} 16. Bxf4 {[%clk 0:01:58.2]} 16... exf4 {[%clk
0:00:53.9]} 17. Neg5 {[%clk 0:01:54.7]} 17... Rae8 {[%clk 0:00:48.7]} 18. Nd4
{[%clk 0:01:41.8]} 18... Bxd4 {[%clk 0:00:19]} 19. Qxd4 {[%clk 0:01:41.4]} 19...
h6 {[%clk 0:00:19.4]} 20. Ne6 {[%clk 0:01:23.6]} 20... Bxe6 {[%clk 0:00:18.9]}
21. Rxe6 {[%clk 0:01:19.4]} 21... Kh7 {[%clk 0:00:17.4]} 22. Bd3 {[%clk
0:01:13.4]} 22... Nf5 {[%clk 0:00:13.8]} 23. Bxf5 {[%clk 0:01:05.4]} 23... Rxf5
{[%clk 0:00:14.7]} 24. Qxa7 {[%clk 0:00:48.6]} 24... Rxe6 {[%clk 0:00:07.4]} 25.
dxe6 {[%clk 0:00:48.8]} 25... Qxe6 {[%clk 0:00:08.3]} 26. Qxb7 {[%clk
0:00:47.9]} 26... Qxc4 {[%clk 0:00:06.6]} 27. Kh2 {[%clk 0:00:41.2]} 27... f3
{[%clk 0:00:05.2]} 28. Rxf3 {[%clk 0:00:39.1]} 28... Rxf3 {[%clk 0:00:04.2]} 29.
Qxf3 {[%clk 0:00:39.5]} 29... Qxb4 {[%clk 0:00:04.5]} 30. Qf7+ {[%clk 0:00:31]}
30... Kh8 {[%clk 0:00:04.7]} 31. Qe8+ {[%clk 0:00:30.8]} 31... Kg7 {[%clk
0:00:04.6]} 32. Qe7+ {[%clk 0:00:30.4]} 32... Kg8 {[%clk 0:00:04.5]} 33. Qd8+
{[%clk 0:00:30.8]} 33... Kf7 {[%clk 0:00:04.5]} 34. Qxc7+ {[%clk 0:00:31.5]}
34... Ke6 {[%clk 0:00:04.7]} 35. a5 {[%clk 0:00:24.5]} 35... Qf4+ {[%clk
0:00:04.1]} 36. Kg1 {[%clk 0:00:25]} 36... Qd4 {[%clk 0:00:02.3]} 37. Qc8+
{[%clk 0:00:20.3]} 37... Kf7 {[%clk 0:00:01.6]} 38. a6 {[%clk 0:00:18.7]} 38...
Qa1+ {[%clk 0:00:01.1]} 39. Kh2 {[%clk 0:00:18.8]} 39... Qe5+ {[%clk 0:00:01.6]}
40. g3 {[%clk 0:00:18.7]} 40... Qd4 {[%clk 0:00:02.1]} 41. Qb7+ {[%clk
0:00:17.6]} 41... Ke6 {[%clk 0:00:02.4]} 42. Kg2 {[%clk 0:00:18]} 42... d5
{[%clk 0:00:01.8]} 43. Qc6+ {[%clk 0:00:16.5]} 43... Kf5 {[%clk 0:00:01.3]} 44.
Qd7+ {[%clk 0:00:16.4]} 1-0

[Event "Late-Titled-Tuesday-Blitz-January-23-2024"]
[Site "Chess.com"]
[Date "2024.01.23"]
[Round "10"]
[White "maurovargas01"]
[Black "SmirnovTimofey2000"]
[Result "1-0"]
[WhiteElo "1840"]
[BlackElo "1945"]
[TimeControl "180+1"]
[EndTime "15:52:40 PST"]
[Termination "maurovargas01 won on time"]

1. e4 {[%clk 0:03:00.3]} 1... e5 {[%clk 0:02:58.6]} 2. Nf3 {[%clk 0:03:00.1]}
2... Nf6 {[%clk 0:02:59]} 3. Nxe5 {[%clk 0:02:58.9]} 3... d6 {[%clk 0:02:59.1]}
4. Nf3 {[%clk 0:02:58]} 4... Nxe4 {[%clk 0:02:59.1]} 5. Nc3 {[%clk 0:02:58.3]}
5... Nxc3 {[%clk 0:02:58.4]} 6. dxc3 {[%clk 0:02:59.2]} 6... Be7 {[%clk
0:02:58]} 7. Be3 {[%clk 0:02:58.7]} 7... Be6 {[%clk 0:02:54.9]} 8. Qd2 {[%clk
0:02:58.4]} 8... Nc6 {[%clk 0:02:53.2]} 9. O-O-O {[%clk 0:02:57.6]} 9... O-O
{[%clk 0:02:47.8]} 10. h4 {[%clk 0:02:57.1]} 10... Bg4 {[%clk 0:02:45.7]} 11.
Be2 {[%clk 0:02:54.9]} 11... Bxf3 {[%clk 0:02:38.8]} 12. gxf3 {[%clk 0:02:49.4]}
12... Bxh4 {[%clk 0:02:32.7]} 13. Rdg1 {[%clk 0:02:48.1]} 13... Bf6 {[%clk
0:02:32.2]} 14. Qd3 {[%clk 0:02:29.5]} 14... g6 {[%clk 0:02:20.9]} 15. Qd5
{[%clk 0:02:20.2]} 15... Qe7 {[%clk 0:02:09.8]} 16. Qh5 {[%clk 0:02:17.3]} 16...
Rfd8 {[%clk 0:00:50.3]} 17. Qxh7+ {[%clk 0:02:01.2]} 17... Kf8 {[%clk
0:00:50.3]} 18. Bd3 {[%clk 0:01:22]} 18... Ke8 {[%clk 0:00:48.6]} 19. Qh3 {[%clk
0:01:08]} 19... Qe6 {[%clk 0:00:42.3]} 20. Qxe6+ {[%clk 0:01:00.9]} 20... fxe6
{[%clk 0:00:42.2]} 21. Bxg6+ {[%clk 0:00:59.4]} 21... Kd7 {[%clk 0:00:40.1]} 22.
Rh7+ {[%clk 0:00:58.6]} 22... Ne7 {[%clk 0:00:40.1]} 23. Re1 {[%clk 0:00:52.1]}
23... Kc6 {[%clk 0:00:34.4]} 24. Be4+ {[%clk 0:00:47.9]} 24... d5 {[%clk
0:00:34]} 25. Bd3 {[%clk 0:00:47.6]} 25... Kd6 {[%clk 0:00:32.7]} 26. Bf4+
{[%clk 0:00:46.1]} 26... e5 {[%clk 0:00:30.2]} 27. Bg3 {[%clk 0:00:45.8]} 27...
Rh8 {[%clk 0:00:22.5]} 28. Reh1 {[%clk 0:00:43.4]} 28... Rxh7 {[%clk 0:00:20.2]}
29. Rxh7 {[%clk 0:00:42.8]} 29... Ke6 {[%clk 0:00:19.2]} 30. Rh6 {[%clk
0:00:33.3]} 30... Nf5 {[%clk 0:00:15.2]} 31. Bxf5+ {[%clk 0:00:31.3]} 31... Kxf5
{[%clk 0:00:15.4]} 32. Rh7 {[%clk 0:00:30.2]} 32... Rc8 {[%clk 0:00:13.6]} 33.
Rd7 {[%clk 0:00:25.2]} 33... d4 {[%clk 0:00:08.7]} 34. cxd4 {[%clk 0:00:24.6]}
34... exd4 {[%clk 0:00:08.6]} 35. Bxc7 {[%clk 0:00:22.5]} 35... Bg5+ {[%clk
0:00:05.7]} 36. Kd1 {[%clk 0:00:19.9]} 36... Rh8 {[%clk 0:00:03.9]} 37. Rxd4
{[%clk 0:00:18.4]} 37... Rh1+ {[%clk 0:00:01.7]} 38. Ke2 {[%clk 0:00:18.5]}
38... Rh2 {[%clk 0:00:02]} 39. Rd5+ {[%clk 0:00:16.8]} 39... Kg6 {[%clk
0:00:01.6]} 40. Rd6+ {[%clk 0:00:16.5]} 40... Bf6 {[%clk 0:00:01.2]} 41. Bd8
{[%clk 0:00:15.4]} 1-0

[Event "Late-Titled-Tuesday-Blitz-January-23-2024"]
[Site "Chess.com"]
[Date "2024.01.23"]
[Round "10"]
[White "Jumbo"]
[Black "BogdanDeac"]
[Result "0-1"]
[WhiteElo "2952"]
[BlackElo "3081"]
[TimeControl "180+1"]
[EndTime "15:52:45 PST"]
[Termination "BogdanDeac won by resignation"]

1. d4 {[%clk 0:02:58.2]} 1... Nf6 {[%clk 0:02:59.8]} 2. Nf3 {[%clk 0:02:58.8]}
2... d5 {[%clk 0:02:59.9]} 3. c4 {[%clk 0:02:56.5]} 3... e6 {[%clk 0:03:00]} 4.
g3 {[%clk 0:02:55.3]} 4... dxc4 {[%clk 0:02:57]} 5. Bg2 {[%clk 0:02:54.5]} 5...
Nc6 {[%clk 0:02:57.7]} 6. O-O {[%clk 0:02:34.9]} 6... Rb8 {[%clk 0:02:56.7]} 7.
Bg5 {[%clk 0:02:28.3]} 7... Be7 {[%clk 0:02:52.9]} 8. e3 {[%clk 0:02:28]} 8...
O-O {[%clk 0:02:37]} 9. Nfd2 {[%clk 0:02:17.2]} 9... e5 {[%clk 0:02:12]} 10.
Bxf6 {[%clk 0:02:12.8]} 10... Bxf6 {[%clk 0:02:11.3]} 11. d5 {[%clk 0:02:12.9]}
11... Ne7 {[%clk 0:01:18.9]} 12. Ne4 {[%clk 0:01:36.7]} 12... Nf5 {[%clk
0:01:07.2]} 13. a4 {[%clk 0:01:24.9]} 13... a6 {[%clk 0:00:59.7]} 14. Nbc3
{[%clk 0:01:21.8]} 14... Be7 {[%clk 0:00:51.5]} 15. Qc2 {[%clk 0:01:01]} 15...
b5 {[%clk 0:00:48.4]} 16. axb5 {[%clk 0:01:00.6]} 16... axb5 {[%clk 0:00:49.3]}
17. Ra7 {[%clk 0:01:00.4]} 17... Nd6 {[%clk 0:00:34.5]} 18. Nc5 {[%clk
0:00:55.8]} 18... Bf5 {[%clk 0:00:15.4]} 19. e4 {[%clk 0:00:52.8]} 19... Bc8
{[%clk 0:00:05.6]} 20. Rfa1 {[%clk 0:00:47.2]} 20... Bf6 {[%clk 0:00:04.6]} 21.
Na6 {[%clk 0:00:44.1]} 21... Bxa6 {[%clk 0:00:04.2]} 22. R1xa6 {[%clk
0:00:43.1]} 22... Rb6 {[%clk 0:00:03]} 23. Ra5 {[%clk 0:00:31.8]} 23... Qb8
{[%clk 0:00:02.4]} 24. Bh3 {[%clk 0:00:31.5]} 24... b4 {[%clk 0:00:02.5]} 25.
Ne2 {[%clk 0:00:31.1]} 25... b3 {[%clk 0:00:02.3]} 26. Qb1 {[%clk 0:00:29.5]}
26... Nb5 {[%clk 0:00:02.6]} 27. Bd7 {[%clk 0:00:25.2]} 27... c3 {[%clk
0:00:02.4]} 28. bxc3 {[%clk 0:00:24.6]} 28... Nd6 {[%clk 0:00:02.7]} 29. Bc6
{[%clk 0:00:24.4]} 29... Nc4 {[%clk 0:00:02.1]} 30. Ra8 {[%clk 0:00:20.6]} 30...
Nxa5 {[%clk 0:00:01.8]} 31. Rxb8 {[%clk 0:00:20.5]} 31... Rfxb8 {[%clk
0:00:02.4]} 32. Nc1 {[%clk 0:00:17.1]} 32... b2 {[%clk 0:00:02.4]} 33. Nd3
{[%clk 0:00:17.1]} 33... Nc4 {[%clk 0:00:02.9]} 34. Nxb2 {[%clk 0:00:17.1]}
34... Nxb2 {[%clk 0:00:02.9]} 35. Qd3 {[%clk 0:00:17.7]} 35... Nxd3 {[%clk
0:00:03]} 36. c4 {[%clk 0:00:17.3]} 36... Nc5 {[%clk 0:00:03.9]} 37. Kg2 {[%clk
0:00:16]} 37... Bd8 {[%clk 0:00:04.8]} 38. Kf3 {[%clk 0:00:16.7]} 38... Rb3+
{[%clk 0:00:05.1]} 39. Kg4 {[%clk 0:00:17.2]} 39... Rb2 {[%clk 0:00:06]} 40. f3
{[%clk 0:00:17.6]} 40... Bf6 {[%clk 0:00:05.9]} 41. h4 {[%clk 0:00:16.5]} 41...
g6 {[%clk 0:00:06.8]} 42. h5 {[%clk 0:00:17.1]} 42... gxh5+ {[%clk 0:00:07.2]}
43. Kxh5 {[%clk 0:00:18]} 43... Kg7 {[%clk 0:00:08]} 44. Kg4 {[%clk 0:00:18.4]}
44... Nd3 {[%clk 0:00:08.4]} 45. Kf5 {[%clk 0:00:18.6]} 45... Nc5 {[%clk
0:00:08.9]} 46. f4 {[%clk 0:00:18.6]} 46... exf4 {[%clk 0:00:09.3]} 47. gxf4
{[%clk 0:00:19.2]} 47... Re2 {[%clk 0:00:09.9]} 48. e5 {[%clk 0:00:19.5]} 48...
Bxe5 {[%clk 0:00:10.3]} 49. fxe5 {[%clk 0:00:20.4]} 49... Rf2+ {[%clk
0:00:10.8]} 50. Kg5 {[%clk 0:00:19.7]} 50... Rc2 {[%clk 0:00:11.3]} 51. d6
{[%clk 0:00:18.4]} 51... cxd6 {[%clk 0:00:11]} 52. exd6 {[%clk 0:00:19.3]} 52...
Rxc4 {[%clk 0:00:11.6]} 0-1

[Event "Late-Titled-Tuesday-Blitz-January-23-2024"]
[Site "Chess.com"]
[Date "2024.01.23"]
[Round "10"]
[White "wild3000"]
[Black "yaguigor"]
[Result "0-1"]
[WhiteElo "2452"]
[BlackElo "2619"]
[TimeControl "180+1"]
[EndTime "15:52:45 PST"]
[Termination "yaguigor won by checkmate"]

1. d4 {[%clk 0:01:42.4]} 1... d5 {[%clk 0:02:56.1]} 2. Nf3 {[%clk 0:01:38.3]}
2... Nf6 {[%clk 0:02:54.9]} 3. e3 {[%clk 0:01:38.3]} 3... c5 {[%clk 0:02:54.1]}
4. Be2 {[%clk 0:01:38.1]} 4... Nc6 {[%clk 0:02:53.3]} 5. O-O {[%clk 0:01:38.3]}
5... cxd4 {[%clk 0:02:43.1]} 6. Nxd4 {[%clk 0:01:37.9]} 6... e5 {[%clk
0:02:41.6]} 7. Nxc6 {[%clk 0:01:38.1]} 7... bxc6 {[%clk 0:02:42.3]} 8. c4 {[%clk
0:01:39]} 8... Be7 {[%clk 0:02:39.4]} 9. Nc3 {[%clk 0:01:33.5]} 9... O-O {[%clk
0:02:38.3]} 10. b3 {[%clk 0:01:33.4]} 10... d4 {[%clk 0:02:35.5]} 11. Na4 {[%clk
0:01:33.4]} 11... c5 {[%clk 0:02:28]} 12. exd4 {[%clk 0:01:26.4]} 12... cxd4
{[%clk 0:02:26.3]} 13. Bg5 {[%clk 0:01:15.2]} 13... Bf5 {[%clk 0:02:13.3]} 14.
Bxf6 {[%clk 0:01:00]} 14... Bxf6 {[%clk 0:02:11.6]} 15. Bg4 {[%clk 0:01:00.5]}
15... Bg6 {[%clk 0:02:03]} 16. c5 {[%clk 0:00:49.1]} 16... e4 {[%clk 0:01:54.3]}
17. c6 {[%clk 0:00:48.7]} 17... Qd6 {[%clk 0:01:41]} 18. Rc1 {[%clk 0:00:45.6]}
18... Bd8 {[%clk 0:01:39.4]} 19. Bh5 {[%clk 0:00:30.4]} 19... Bc7 {[%clk
0:01:36.6]} 20. g3 {[%clk 0:00:29.8]} 20... d3 {[%clk 0:01:29.7]} 21. Bxg6
{[%clk 0:00:25]} 21... hxg6 {[%clk 0:01:28.5]} 22. Qd2 {[%clk 0:00:21.3]} 22...
f5 {[%clk 0:01:22.6]} 23. Rc4 {[%clk 0:00:20.1]} 23... Rae8 {[%clk 0:01:18.8]}
24. Rd1 {[%clk 0:00:18]} 24... f4 {[%clk 0:01:13.2]} 25. Qb4 {[%clk 0:00:18]}
25... Qe6 {[%clk 0:01:01.5]} 26. Nc5 {[%clk 0:00:15]} 26... Qh3 {[%clk
0:01:00.8]} 27. Qe1 {[%clk 0:00:08.9]} 27... fxg3 {[%clk 0:00:54.4]} 28. hxg3
{[%clk 0:00:08.9]} 28... e3 {[%clk 0:00:51.2]} 29. fxe3 {[%clk 0:00:02.5]} 29...
Bxg3 {[%clk 0:00:47.2]} 30. Qd2 {[%clk 0:00:02.8]} 30... Rf2 {[%clk 0:00:41.9]}
31. Qxf2 {[%clk 0:00:02.7]} 31... Bxf2+ {[%clk 0:00:41.5]} 32. Kxf2 {[%clk
0:00:03.6]} 32... Qh2+ {[%clk 0:00:36]} 33. Kf3 {[%clk 0:00:03.2]} 33... Qe2+
{[%clk 0:00:35]} 34. Kf4 {[%clk 0:00:02.9]} 34... Rf8+ {[%clk 0:00:33.3]} 35.
Ke5 {[%clk 0:00:02.9]} 35... Qxd1 {[%clk 0:00:30.8]} 36. c7 {[%clk 0:00:02.7]}
36... d2 {[%clk 0:00:24.5]} 37. Ne4 {[%clk 0:00:02.3]} 37... Qa1+ {[%clk
0:00:23.5]} 38. Ke6 {[%clk 0:00:02.4]} 38... Re8+ {[%clk 0:00:14.7]} 39. Kd7
{[%clk 0:00:02.3]} 39... Qe5 {[%clk 0:00:14.4]} 40. c8=Q {[%clk 0:00:02.1]}
40... Qe6+ {[%clk 0:00:14.4]} 41. Kc7 {[%clk 0:00:02.8]} 41... Rxc8+ {[%clk
0:00:13.8]} 42. Kb7 {[%clk 0:00:03.7]} 42... Rxc4 {[%clk 0:00:13.1]} 43. Nxd2
{[%clk 0:00:04.3]} 43... Qc6+ {[%clk 0:00:11.8]} 44. Kb8 {[%clk 0:00:03.2]}
44... Qb6+ {[%clk 0:00:11.8]} 45. Ka8 {[%clk 0:00:03.2]} 45... Rc8# {[%clk
0:00:12.5]} 0-1

[Event "Late-Titled-Tuesday-Blitz-January-23-2024"]
[Site "Chess.com"]
[Date "2024.01.23"]
[Round "10"]
[White "ImportedItalianMaple"]
[Black "Crazy_girl99"]
[Result "1-0"]
[WhiteElo "2446"]
[BlackElo "2582"]
[TimeControl "180+1"]
[EndTime "15:52:45 PST"]
[Termination "ImportedItalianMaple won by resignation"]

1. e4 {[%clk 0:03:00.9]} 1... e5 {[%clk 0:02:53]} 2. Nf3 {[%clk 0:02:56.9]} 2...
Nc6 {[%clk 0:02:53]} 3. Bb5 {[%clk 0:02:57.5]} 3... a6 {[%clk 0:02:52.9]} 4. Ba4
{[%clk 0:02:57.5]} 4... Nf6 {[%clk 0:02:52.5]} 5. O-O {[%clk 0:02:56.5]} 5...
Be7 {[%clk 0:02:50.2]} 6. Re1 {[%clk 0:02:55]} 6... b5 {[%clk 0:02:50.3]} 7. Bb3
{[%clk 0:02:54.8]} 7... d6 {[%clk 0:02:51]} 8. c3 {[%clk 0:02:52.2]} 8... O-O
{[%clk 0:02:48]} 9. h3 {[%clk 0:02:50.7]} 9... Nb8 {[%clk 0:02:44.8]} 10. d4
{[%clk 0:02:49.9]} 10... Nbd7 {[%clk 0:02:45.1]} 11. Nbd2 {[%clk 0:02:47.2]}
11... Bb7 {[%clk 0:02:45.1]} 12. Bc2 {[%clk 0:02:45]} 12... Re8 {[%clk
0:02:41.1]} 13. Nf1 {[%clk 0:02:43.9]} 13... Bf8 {[%clk 0:02:40.7]} 14. Ng3
{[%clk 0:02:42.9]} 14... g6 {[%clk 0:02:41.2]} 15. Bg5 {[%clk 0:02:20.5]} 15...
h6 {[%clk 0:02:39.8]} 16. Bd2 {[%clk 0:02:20.5]} 16... Bg7 {[%clk 0:02:40.4]}
17. b3 {[%clk 0:02:05.7]} 17... exd4 {[%clk 0:02:35.2]} 18. cxd4 {[%clk
0:02:04.1]} 18... c5 {[%clk 0:02:35.6]} 19. Bc3 {[%clk 0:01:17.7]} 19... Nh7
{[%clk 0:02:26.8]} 20. Qd2 {[%clk 0:01:10.8]} 20... b4 {[%clk 0:02:25.8]} 21.
Bb2 {[%clk 0:01:10.1]} 21... Rc8 {[%clk 0:02:24.3]} 22. Rad1 {[%clk 0:01:09.5]}
22... a5 {[%clk 0:02:21.3]} 23. Bd3 {[%clk 0:01:06.6]} 23... cxd4 {[%clk
0:02:14.4]} 24. Bxd4 {[%clk 0:01:05.1]} 24... Ne5 {[%clk 0:02:12.7]} 25. Nxe5
{[%clk 0:00:55.8]} 25... dxe5 {[%clk 0:02:13]} 26. Be3 {[%clk 0:00:55.6]} 26...
Ng5 {[%clk 0:02:09]} 27. h4 {[%clk 0:00:37.6]} 27... Ne6 {[%clk 0:02:08]} 28. h5
{[%clk 0:00:28.3]} 28... Kh7 {[%clk 0:02:03.2]} 29. Bb5 {[%clk 0:00:20.5]} 29...
Qxd2 {[%clk 0:02:02.1]} 30. Rxd2 {[%clk 0:00:21.1]} 30... Red8 {[%clk
0:02:02.1]} 31. Red1 {[%clk 0:00:20.2]} 31... Nd4 {[%clk 0:02:01.4]} 32. Bc4
{[%clk 0:00:19.2]} 32... Rc7 {[%clk 0:01:52.9]} 33. Kh2 {[%clk 0:00:18]} 33...
Bf6 {[%clk 0:01:48.6]} 34. Ne2 {[%clk 0:00:17.9]} 34... Bxe4 {[%clk 0:01:46.4]}
35. Nxd4 {[%clk 0:00:17]} 35... exd4 {[%clk 0:01:46.9]} 36. Bxd4 {[%clk
0:00:17.4]} 36... Bg5 {[%clk 0:01:45.2]} 37. Bb6 {[%clk 0:00:10.8]} 37... Bxd2
{[%clk 0:01:31.3]} 38. Bxc7 {[%clk 0:00:09.6]} 38... Bf4+ {[%clk 0:01:31.6]} 39.
Bxf4 {[%clk 0:00:10.2]} 39... Rxd1 {[%clk 0:01:31.7]} 40. Bc7 {[%clk 0:00:10.7]}
40... Ra1 {[%clk 0:01:26.8]} 41. Bxa5 {[%clk 0:00:11]} 41... Rxa2 {[%clk
0:01:27.1]} 42. Bxb4 {[%clk 0:00:09.2]} 42... Rxf2 {[%clk 0:01:27.7]} 43. Kg3
{[%clk 0:00:09]} 43... Rxg2+ {[%clk 0:01:27.9]} 44. Kf4 {[%clk 0:00:09.5]} 44...
Bc2 {[%clk 0:01:24.1]} 45. Bxf7 {[%clk 0:00:09.7]} 45... g5+ {[%clk 0:01:20.8]}
46. Kf3 {[%clk 0:00:07.8]} 46... Rg1 {[%clk 0:01:17.2]} 47. Kf2 {[%clk
0:00:07.6]} 47... Rb1 {[%clk 0:01:17.1]} 48. Bc3 {[%clk 0:00:06.4]} 48... Bf5
{[%clk 0:01:12.8]} 49. b4 {[%clk 0:00:06.3]} 49... g4 {[%clk 0:01:07.8]} 50. Ke3
{[%clk 0:00:06.5]} 50... Rf1 {[%clk 0:01:04.7]} 51. Bd5 {[%clk 0:00:04.9]} 51...
g3 {[%clk 0:01:02.9]} 52. b5 {[%clk 0:00:05]} 52... Rb1 {[%clk 0:00:58.5]} 53.
Bc6 {[%clk 0:00:04.2]} 53... Bh3 {[%clk 0:00:54.6]} 54. Be4+ {[%clk 0:00:01.4]}
54... Kg8 {[%clk 0:00:52]} 55. Bxb1 {[%clk 0:00:02.3]} 55... Bg4 {[%clk
0:00:44.3]} 56. Kf4 {[%clk 0:00:01.3]} 56... g2 {[%clk 0:00:43.3]} 57. Bd4
{[%clk 0:00:02]} 57... Bxh5 {[%clk 0:00:43.5]} 58. Bg1 {[%clk 0:00:02.4]} 58...
Be2 {[%clk 0:00:41.4]} 59. b6 {[%clk 0:00:02]} 59... Ba6 {[%clk 0:00:42.1]} 60.
Be4 {[%clk 0:00:02.5]} 60... Kg7 {[%clk 0:00:42.6]} 61. Bxg2 {[%clk 0:00:03.2]}
61... Kg6 {[%clk 0:00:42.9]} 62. b7 {[%clk 0:00:03.6]} 62... h5 {[%clk
0:00:43.8]} 63. b8=Q {[%clk 0:00:03.6]} 1-0

[Event "Late-Titled-Tuesday-Blitz-January-23-2024"]
[Site "Chess.com"]
[Date "2024.01.23"]
[Round "10"]
[White "rionelG"]
[Black "mfwagnerpeixoto"]
[Result "0-1"]
[WhiteElo "2251"]
[BlackElo "2318"]
[TimeControl "180+1"]
[EndTime "15:52:45 PST"]
[Termination "mfwagnerpeixoto won on time"]

1. e4 {[%clk 0:02:57.8]} 1... c6 {[%clk 0:02:55.8]} 2. d4 {[%clk 0:02:56.8]}
2... d5 {[%clk 0:02:56.2]} 3. e5 {[%clk 0:02:57.5]} 3... Bf5 {[%clk 0:02:51.2]}
4. Nf3 {[%clk 0:02:57.8]} 4... e6 {[%clk 0:02:50.9]} 5. Be2 {[%clk 0:02:58.2]}
5... h6 {[%clk 0:02:51]} 6. O-O {[%clk 0:02:58.4]} 6... Nd7 {[%clk 0:02:51.4]}
7. Nbd2 {[%clk 0:02:56.5]} 7... Bh7 {[%clk 0:02:48.4]} 8. a4 {[%clk 0:02:51.3]}
8... a5 {[%clk 0:02:47.8]} 9. Nb3 {[%clk 0:02:49.9]} 9... g5 {[%clk 0:02:45.4]}
10. Bd2 {[%clk 0:02:44.6]} 10... Ne7 {[%clk 0:02:40.5]} 11. Rc1 {[%clk
0:02:19.8]} 11... Nf5 {[%clk 0:02:39.9]} 12. c4 {[%clk 0:02:16.3]} 12... dxc4
{[%clk 0:02:39.5]} 13. Bxc4 {[%clk 0:02:16.2]} 13... Be7 {[%clk 0:02:22.3]} 14.
Bc3 {[%clk 0:02:11]} 14... Qb6 {[%clk 0:02:00.7]} 15. Qd2 {[%clk 0:02:05.6]}
15... g4 {[%clk 0:01:43.5]} 16. Ne1 {[%clk 0:02:01.9]} 16... Bg5 {[%clk
0:01:43.5]} 17. Qe2 {[%clk 0:01:06]} 17... Bxc1 {[%clk 0:01:41.1]} 18. Nxc1
{[%clk 0:01:06.9]} 18... Nxd4 {[%clk 0:01:29.9]} 19. Qxg4 {[%clk 0:01:04.7]}
19... Nf5 {[%clk 0:01:17]} 20. Nb3 {[%clk 0:00:45.6]} 20... Rg8 {[%clk
0:01:01.4]} 21. Qh3 {[%clk 0:00:41.4]} 21... Qc7 {[%clk 0:00:36.8]} 22. Nd3
{[%clk 0:00:39.8]} 22... h5 {[%clk 0:00:28]} 23. Nf4 {[%clk 0:00:34.8]} 23...
Nxe5 {[%clk 0:00:19]} 24. Bxe6 {[%clk 0:00:31.8]} 24... fxe6 {[%clk 0:00:10.3]}
25. Nxe6 {[%clk 0:00:32.7]} 25... Qf7 {[%clk 0:00:07.4]} 26. Nc7+ {[%clk
0:00:29.8]} 26... Qxc7 {[%clk 0:00:06.5]} 27. Bxe5 {[%clk 0:00:30.4]} 27... Qxe5
{[%clk 0:00:06]} 28. Qxh5+ {[%clk 0:00:28.6]} 28... Bg6 {[%clk 0:00:06.3]} 29.
Qd1 {[%clk 0:00:22.6]} 29... Rd8 {[%clk 0:00:05.3]} 30. Qc1 {[%clk 0:00:15.9]}
30... Kf7 {[%clk 0:00:04.7]} 31. Qc4+ {[%clk 0:00:15]} 31... Qe6 {[%clk
0:00:04.5]} 32. Qc3 {[%clk 0:00:14.8]} 32... Rh8 {[%clk 0:00:04.4]} 33. Re1
{[%clk 0:00:15]} 33... Qd6 {[%clk 0:00:04.4]} 34. g3 {[%clk 0:00:15.5]} 34...
Nd4 {[%clk 0:00:02.7]} 35. Qc4+ {[%clk 0:00:15.5]} 35... Qd5 {[%clk 0:00:02.7]}
36. Qc5 {[%clk 0:00:06.6]} 36... Nf3+ {[%clk 0:00:02.4]} 37. Kf1 {[%clk
0:00:04.8]} 37... Qxc5 {[%clk 0:00:02.2]} 38. Nxc5 {[%clk 0:00:03.3]} 38... Nxe1
{[%clk 0:00:02.9]} 0-1